fUST/lending_fUST_20240613
["ID","MTS","AMOUNT","RATE_DAILY","PERIOD"]
[329331126,1718250647035,-500.0,0.0001726,2]
[329331127,1718250647046,-1047.73,0.0001726,2]
[329331128,1718250647057,-1803.99,0.0001726,2]
[329331129,1718250647070,-500.0,0.0001726,2]
[329331130,1718250647082,-3380.12,0.0001726,2]
[329331131,1718250647097,-529.77,0.0001726,2]
[329331132,1718250647111,-500.0,0.0001726,2]
[329331133,1718250647123,-500.0,0.0001726,2]
[329331134,1718250647139,-5235.08,0.0001726,2]
[329331135,1718250647152,-4565.19,0.0001726,2]
[329331136,1718250647164,-1384.15,0.0001726,2]
[329331137,1718250647176,-500.0,0.0001726,2]
[329331138,1718250647187,-1465.76,0.0001726,2]
[329331139,1718250647198,-647.73,0.0001726,2]
[329331140,1718250647209,-500.0,0.0001726,2]
[329331141,1718250647220,-518.17,0.0001726,2]
[329331142,1718250647231,-683.54,0.0001726,2]
[329331143,1718250647241,-500.0,0.0001726,2]
[329331144,1718250647252,-500.0,0.0001726,2]
[329331145,1718250647263,-2063.19,0.0001726,2]
[329331146,1718250647274,-500.0,0.0001726,2]
[329331147,1718250647288,-500.0,0.0001726,2]
[329331148,1718250647300,-306.0,0.00017512,2]
[329331149,1718250647312,-500.0,0.00017533,2]
[329331150,1718250647325,-500.0,0.00017534,2]
[329331151,1718250647335,-517.37,0.00017534,2]
[329331152,1718250647350,-500.0,0.00017534,2]
[329331153,1718250647362,-500.0,0.00017534,2]
[329331154,1718250647372,-939.184518,0.00017534,2]
[329331155,1718250647384,-500.0,0.00017534,2]
[329331156,1718250647394,-939.184518,0.00017534,2]
[329331157,1718250647405,-500.0,0.00017534,2]
[329331158,1718250647417,-151.0,0.00017534,2]
[329331159,1718250647430,-500.0,0.00017534,2]
[329331160,1718250647441,-500.0,0.00017534,2]
[329331161,1718250647453,-151.0,0.00017534,2]
[329331162,1718250647464,-729.86,0.00017534,2]
[329331163,1718250647476,-151.0,0.00017534,2]
[329331164,1718250647487,-151.0,0.00017534,2]
[329331165,1718250647497,-500.0,0.00017534,2]
[329331166,1718250647508,-1510.11,0.00017534,2]
[329331167,1718250647518,-151.0,0.00017534,2]
[329331168,1718250647530,-500.0,0.00017534,2]
[329331169,1718250647541,-1199.06,0.00017534,2]
[329331170,1718250647551,-151.0,0.00017534,2]
[329331171,1718250647562,-1319.01,0.00017534,2]
[329331172,1718250647573,-500.0,0.00017534,2]
[329331173,1718250647585,-901.88,0.00017534,2]
[329331174,1718250647596,-500.0,0.00017534,2]
[329331175,1718250647607,-151.0,0.00017534,2]
[329331176,1718250647617,-693.25,0.00017534,2]
[329331177,1718250647627,-192.85627497,0.00017534,2]
[329331178,1718250647749,-307.14372503,0.00017534,2]
[329331179,1718250647760,-1047.73,0.00017534,2]
[329331180,1718250647796,-1803.99,0.00017534,2]
[329331181,1718250647809,-500.0,0.00017534,2]
[329331182,1718250647820,-234.213191,0.00017534,2]
[329331183,1718250647831,-234.213191,0.00017534,2]
[329331184,1718250647842,-3380.12,0.00017534,2]
[329331185,1718250647854,-529.77,0.00017534,2]
[329331186,1718250647865,-176.22579761,0.00017534,2]
[329331187,1718250647876,-500.0,0.00017534,2]
[329331188,1718250647887,-4706.79409536,0.00017534,2]
[329331189,1718250647911,-528.28590464,0.00017534,2]
[329331190,1718250647924,-746.22565567,0.00017534,2]
[329331191,1718250647938,-3818.96434433,0.00017534,2]
[329331192,1718250647950,-1384.15,0.00017534,2]
[329331193,1718250647960,-500.0,0.00017534,2]
[329331194,1718250647970,-1006.28565567,0.00017534,2]
[329331223,1718250653121,-500.0,0.00016438,2]
[329331224,1718250653133,-178.95793225,0.00016438,2]
[329331236,1718250653962,-321.04206775,0.00016438,2]
[329331237,1718250653975,-500.0,0.00016712,2]
[329331238,1718250653996,-72.69277499,0.00016712,2]
[329331244,1718250667831,405.28,0.00010959,2]
[329331293,1718250816660,277.30002513,0.000265,120]
[329331306,1718251309182,1500.0,0.00021917,30]
[329331307,1718251309480,1500.0,0.00022739,30]
[329331309,1718251551686,154.9690062,9.999e-05,2]
[329331310,1718251609163,-226.40090366,0.00015436,2]
[329331337,1718251834421,-154.9690062,0.00015435,2]
[329331339,1718251834434,-81.54658304,0.00015436,2]
[329331341,1718251834459,-226.3994633,0.00015436,2]
[329331343,1718251834471,-252.79065881,0.00016236,2]
[329331345,1718251834493,-682.86538513,0.00016333,2]
[329331347,1718251834517,-300.0,0.00016431,2]
[329331350,1718251834548,-42124.85895111,0.00016432,2]
[329331352,1718251834567,-155.10384293,0.00016433,2]
[329331355,1718251834591,-155.1051018,0.00016433,2]
[329331356,1718251834612,-155.16081861,0.00016433,2]
[329331357,1718251834641,-157.16582144,0.00016433,2]
[329331358,1718251834653,-1285.47667266,0.00016433,2]
[329331359,1718251834666,-195.13677025,0.00016433,2]
[329331360,1718251834685,-1346.90948518,0.00016433,2]
[329331361,1718251834698,-208.42988164,0.00016433,2]
[329331362,1718251834714,-552.55976636,0.00016433,2]
[329331363,1718251834725,-722.49195225,0.00016433,2]
[329331364,1718251834744,-190.55526406,0.00016433,2]
[329331365,1718251834756,-1755.70847028,0.00016433,2]
[329331366,1718251834768,-930.02182381,0.00016433,2]
[329331367,1718251834790,-272.59860825,0.00016433,2]
[329331368,1718251834822,-155.30572208,0.00016433,2]
[329331370,1718251834834,-155.08840647,0.00016433,2]
[329331372,1718251834848,-155.01550155,0.00016433,2]
[329331373,1718251834872,-155.07945815,0.00016433,2]
[329331375,1718251834884,-155.01550155,0.00016433,2]
[329331377,1718251834935,-303.336601,0.00016433,2]
[329331379,1718251834955,-1014.77866956,0.00016435,2]
[329331381,1718251834967,-39061.97327469,0.00016435,2]
[329331383,1718251834978,-2120.15435773,0.00016436,2]
[329331385,1718251834991,-155.01395126,0.00016436,2]
[329331387,1718251835012,-27592.08482979,0.00016437,2]
[329331390,1718251835033,-511.04237525,0.00016438,2]
[329331392,1718251835047,-500.0,0.00016438,2]
[329331393,1718251835064,-500.0,0.00016438,2]
[329331394,1718251835079,-500.0,0.00016438,2]
[329331395,1718251835097,-504.57894638,0.00016438,2]
[329331396,1718251835124,-500.0,0.00016438,2]
[329331397,1718251835140,-500.0,0.00016438,2]
[329331398,1718251835154,-500.0,0.00016438,2]
[329331399,1718251835175,-500.0,0.00016438,2]
[329331400,1718251835193,-500.0,0.00016438,2]
[329331401,1718251835229,-500.0,0.00016438,2]
[329331402,1718251835246,-500.0,0.00016438,2]
[329331403,1718251835261,-500.0,0.00016438,2]
[329331404,1718251835273,-193.30367362,0.00016438,2]
[329331458,1718251844286,-306.01912848,0.00016437,2]
[329331459,1718251844309,-274.67085049,0.00016438,2]
[329331460,1718251844350,-504.60595636,0.00016438,2]
[329331461,1718251844366,-500.0,0.00016438,2]
[329331462,1718251844396,-500.0,0.00016438,2]
[329331463,1718251844428,-500.0,0.00016438,2]
[329331464,1718251844443,-500.0,0.00016438,2]
[329331465,1718251844464,-552.19818538,0.00016438,2]
[329331466,1718251844476,-386.46706211,0.00016438,2]
[329331481,1718251846649,-113.53293789,0.00016438,2]
[329331482,1718251846673,-500.0,0.00016438,2]
[329331483,1718251846684,-511.07454243,0.00016438,2]
[329331484,1718251846701,-500.0,0.00016438,2]
[329331485,1718251846724,-500.0,0.00016438,2]
[329331486,1718251846748,-500.0,0.00016438,2]
[329331487,1718251846768,-715.77,0.00016438,2]
[329331488,1718251846786,-500.0,0.00016438,2]
[329331489,1718251846801,-500.0,0.00016438,2]
[329331490,1718251846814,-500.0,0.00016438,2]
[329331491,1718251846826,-500.0,0.00016438,2]
[329331492,1718251846839,-500.0,0.00016438,2]
[329331493,1718251846851,-500.0,0.00016438,2]
[329331494,1718251846873,-243.18562824,0.00016438,2]
[329331530,1718251849086,-419.39201578,0.00015436,2]
[329331582,1718251854993,-160.74762647,0.00015436,2]
[329331583,1718251855008,-154.9690062,0.00016437,2]
[329331584,1718251855020,-3063.18273631,0.00016437,2]
[329331585,1718251855033,-256.81437176,0.00016438,2]
[329331586,1718251855047,-500.0,0.00016438,2]
[329331587,1718251855060,-500.0,0.00016438,2]
[329331588,1718251855075,-500.0,0.00016438,2]
[329331589,1718251855096,-500.0,0.00016438,2]
[329331590,1718251855107,-1384.29,0.00016438,2]
[329331591,1718251855120,-500.0,0.00016438,2]
[329331592,1718251855132,-500.0,0.00016438,2]
[329331593,1718251855149,-1269.24,0.00016438,2]
[329331594,1718251855162,-500.0,0.00016438,2]
[329331595,1718251855175,-500.0,0.00016438,2]
[329331596,1718251855208,-500.0,0.00016438,2]
[329331597,1718251855225,-828.76,0.00016438,2]
[329331598,1718251855237,-500.0,0.00016438,2]
[329331600,1718251855263,-1150.42,0.00016438,2]
[329331603,1718251855294,-500.0,0.00016438,2]
[329331605,1718251855319,-500.0,0.00016438,2]
[329331607,1718251855341,-528.97686081,0.00016438,2]
[329331609,1718251855354,-500.0,0.00016438,2]
[329331611,1718251855373,-635.48,0.00016438,2]
[329331612,1718251855394,-958.98,0.00016438,2]
[329331614,1718251855418,-2016.89,0.00016438,2]
[329331616,1718251855443,-500.0,0.00016438,2]
[329331618,1718251855457,-500.0,0.00016438,2]
[329331620,1718251855476,-500.0,0.00016438,2]
[329331622,1718251855488,-500.0,0.00016438,2]
[329331624,1718251855502,-500.0,0.00016438,2]
[329331625,1718251855514,-500.0,0.00016438,2]
[329331627,1718251855531,-4829.98,0.00016438,2]
[329331630,1718251855569,-500.0,0.00016438,2]
[329331632,1718251855595,-500.0,0.00016438,2]
[329331634,1718251855610,-645.59,0.00016438,2]
[329331636,1718251855624,-3118.56,0.00016438,2]
[329331639,1718251855643,-500.0,0.00016438,2]
[329331641,1718251855657,-500.0,0.00016438,2]
[329331643,1718251855670,-500.0,0.00016438,2]
[329331644,1718251855682,-659.12,0.00016438,2]
[329331646,1718251855702,-516.64469479,0.00016438,2]
[329331648,1718251855724,-1277.05,0.00016438,2]
[329331649,1718251855737,-500.0,0.00016438,2]
[329331652,1718251855754,-658.38,0.00016438,2]
[329331654,1718251855784,-4202.03,0.00016438,2]
[329331656,1718251855796,-1377.33,0.00016438,2]
[329331658,1718251855815,-500.0,0.00016438,2]
[329331660,1718251855832,-500.0,0.00016438,2]
[329331662,1718251855854,-500.0,0.00016438,2]
[329331665,1718251855881,-505.92601737,0.00016438,2]
[329331666,1718251855897,-500.0,0.00016438,2]
[329331669,1718251855929,-556.71,0.00016438,2]
[329331670,1718251855952,-500.0,0.00016438,2]
[329331672,1718251855969,-508.70644209,0.00016438,2]
[329331676,1718251856020,-504.32849719,0.00016438,2]
[329331677,1718251856032,-500.0,0.00016438,2]
[329331679,1718251856046,-500.0,0.00016438,2]
[329331681,1718251856058,-1821.69,0.00016438,2]
[329331683,1718251856080,-500.0,0.00016438,2]
[329331685,1718251856093,-500.0,0.00016438,2]
[329331687,1718251856112,-500.0,0.00016438,2]
[329331689,1718251856131,-500.0,0.00016438,2]
[329331690,1718251856147,-822.98968472,0.00016612,2]
[329331692,1718251856158,-500.0,0.00016711,2]
[329331694,1718251856178,-500.0,0.00016711,2]
[329331696,1718251856199,-500.0,0.00016711,2]
[329331698,1718251856223,-500.0,0.00016712,2]
[329331699,1718251856234,-500.0,0.00016712,2]
[329331701,1718251856251,-500.0,0.00016712,2]
[329331702,1718251856262,-500.0,0.00016712,2]
[329331704,1718251856290,-500.0,0.00016712,2]
[329331707,1718251856306,-500.0,0.00016712,2]
[329331708,1718251856333,-500.0,0.00016712,2]
[329331709,1718251856351,-500.0,0.00016712,2]
[329331711,1718251856362,-512.84442164,0.00016712,2]
[329331713,1718251856379,-500.0,0.00016712,2]
[329331714,1718251856390,-500.0,0.00016712,2]
[329331716,1718251856403,-500.0,0.00016712,2]
[329331718,1718251856414,-715.77,0.00016712,2]
[329331720,1718251856431,-457.5668634,0.00016712,2]
[329331721,1718251856446,-192.44892117,0.00016712,2]
[329331724,1718251856467,-500.0,0.00016712,2]
[329331726,1718251856483,-500.0,0.00016712,2]
[329331728,1718251856494,-500.0,0.00016712,2]
[329331730,1718251856512,-500.0,0.00016712,2]
[329331731,1718251856524,-1384.29,0.00016712,2]
[329331734,1718251856537,-500.0,0.00016712,2]
[329331736,1718251856558,-500.0,0.00016712,2]
[329331738,1718251856575,-1269.24,0.00016712,2]
[329331741,1718251856593,-500.0,0.00016712,2]
[329331743,1718251856607,-500.0,0.00016712,2]
[329331745,1718251856618,-500.0,0.00016712,2]
[329331748,1718251856644,-828.76,0.00016712,2]
[329331749,1718251856660,-517.38748214,0.00016712,2]
[329331751,1718251856676,-1150.42,0.00016712,2]
[329331753,1718251856693,-635.48,0.00016712,2]
[329331755,1718251856706,-958.98,0.00016712,2]
[329331757,1718251856732,-2016.89,0.00016712,2]
[329331759,1718251856752,-500.0,0.00016712,2]
[329331762,1718251856772,-500.0,0.00016712,2]
[329331764,1718251856786,-4829.98,0.00016712,2]
[329331765,1718251856797,-522.26329465,0.00016712,2]
[329331768,1718251856807,-645.59,0.00016712,2]
[329331771,1718251856834,-3118.56,0.00016712,2]
[329331772,1718251856847,-500.0,0.00016712,2]
[329331774,1718251856860,-659.12,0.00016712,2]
[329331776,1718251856872,-1277.05,0.00016712,2]
[329331778,1718251856886,-500.0,0.00016712,2]
[329331782,1718251856932,-658.38,0.00016712,2]
[329331784,1718251856948,-4202.03,0.00016712,2]
[329331786,1718251856963,-1377.33,0.00016712,2]
[329331787,1718251856992,-500.0,0.00016712,2]
[329331789,1718251857005,-500.0,0.00016712,2]
[329331791,1718251857016,-500.0,0.00016712,2]
[329331794,1718251857044,-556.71,0.00016712,2]
[329331796,1718251857068,-500.0,0.00016712,2]
[329331797,1718251857082,-500.0,0.00016712,2]
[329331799,1718251857104,-1821.69,0.00016712,2]
[329331801,1718251857123,-500.0,0.00016712,2]
[329331803,1718251857151,-500.0,0.00016712,2]
[329331805,1718251857167,-500.0,0.00016712,2]
[329331807,1718251857217,-500.0,0.00016712,2]
[329331809,1718251857231,-155.17444303,0.00016985,2]
[329331811,1718251857244,-156.46329048,0.00016985,2]
[329331812,1718251857255,-500.0,0.00016985,2]
[329331814,1718251857267,-296.17395839,0.00016985,2]
[329331816,1718251857278,-500.0,0.00016986,2]
[329331818,1718251857291,-500.0,0.00016986,2]
[329331820,1718251857305,-500.0,0.00016986,2]
[329331822,1718251857316,-500.0,0.00016986,2]
[329331824,1718251857326,-500.0,0.00016986,2]
[329331826,1718251857337,-219.23059052,0.00016986,2]
[329331828,1718251857347,-500.0,0.00016986,2]
[329331830,1718251857358,-500.0,0.00016986,2]
[329331833,1718251857376,-500.0,0.00016986,2]
[329331835,1718251857392,-500.0,0.00016986,2]
[329331837,1718251857405,-715.77,0.00016986,2]
[329331839,1718251857416,-500.0,0.00016986,2]
[329331841,1718251857427,-500.0,0.00016986,2]
[329331843,1718251857442,-500.0,0.00016986,2]
[329331845,1718251857456,-1384.29,0.00016986,2]
[329331847,1718251857468,-500.0,0.00016986,2]
[329331849,1718251857479,-526.36112683,0.00016986,2]
[329331851,1718251857489,-1269.24,0.00016986,2]
[329331852,1718251857505,-500.0,0.00016986,2]
[329331854,1718251857521,-500.0,0.00016986,2]
[329331856,1718251857532,-500.0,0.00016986,2]
[329331858,1718251857546,-828.76,0.00016986,2]
[329331860,1718251857559,-1150.42,0.00016986,2]
[329331862,1718251857575,-635.48,0.00016986,2]
[329331864,1718251857608,-958.98,0.00016986,2]
[329331866,1718251857619,-2016.89,0.00016986,2]
[329331869,1718251857634,-500.0,0.00016986,2]
[329331871,1718251857646,-500.0,0.00016986,2]
[329331873,1718251857658,-4829.98,0.00016986,2]
[329331875,1718251857669,-645.59,0.00016986,2]
[329331877,1718251857681,-3118.56,0.00016986,2]
[329331879,1718251857694,-500.0,0.00016986,2]
[329331881,1718251857705,-659.12,0.00016986,2]
[329331883,1718251857716,-1277.05,0.00016986,2]
[329331885,1718251857726,-500.0,0.00016986,2]
[329331887,1718251857738,-658.38,0.00016986,2]
[329331889,1718251857753,-4202.03,0.00016986,2]
[329331891,1718251857767,-1377.33,0.00016986,2]
[329331893,1718251857792,-500.0,0.00016986,2]
[329331895,1718251857813,-500.0,0.00016986,2]
[329331897,1718251857824,-500.0,0.00016986,2]
[329331899,1718251857840,-556.71,0.00016986,2]
[329331901,1718251857853,-500.0,0.00016986,2]
[329331909,1718251857869,-1821.69,0.00016986,2]
[329331911,1718251858020,-500.0,0.00016986,2]
[329331913,1718251858041,-500.0,0.00016986,2]
[329331915,1718251858058,-510.12029792,0.00016986,2]
[329331917,1718251858069,-500.0,0.00016986,2]
[329331918,1718251858082,-822.98968468,0.00017229,2]
[329331920,1718251858094,-500.0,0.00017259,2]
[329331922,1718251858106,-500.0,0.0001726,2]
[329331923,1718251858118,-610.76651783,0.0001726,2]
[329331924,1718251858161,-500.0,0.0001726,2]
[329331925,1718251858176,-500.0,0.0001726,2]
[329331926,1718251858221,-500.0,0.0001726,2]
[329331927,1718251858236,-500.0,0.0001726,2]
[329331928,1718251858255,-500.0,0.0001726,2]
[329331929,1718251858272,-715.77,0.0001726,2]
[329331930,1718251858289,-500.0,0.0001726,2]
[329331933,1718251858306,-500.0,0.0001726,2]
[329331935,1718251858327,-1384.29,0.0001726,2]
[329331938,1718251858348,-500.0,0.0001726,2]
[329331940,1718251858370,-1269.24,0.0001726,2]
[329331942,1718251858387,-500.0,0.0001726,2]
[329331944,1718251858401,-500.0,0.0001726,2]
[329331946,1718251858422,-828.76,0.0001726,2]
[329331947,1718251858440,-1150.42,0.0001726,2]
[329331949,1718251858451,-635.48,0.0001726,2]
[329331950,1718251858468,-958.98,0.0001726,2]
[329331951,1718251858479,-2016.89,0.0001726,2]
[329331953,1718251858494,-500.0,0.0001726,2]
[329331955,1718251858514,-4829.98,0.0001726,2]
[329331957,1718251858525,-645.59,0.0001726,2]
[329331958,1718251858540,-3118.56,0.0001726,2]
[329331960,1718251858558,-500.0,0.0001726,2]
[329331961,1718251858570,-659.12,0.0001726,2]
[329331963,1718251858581,-1277.05,0.0001726,2]
[329331965,1718251858593,-500.0,0.0001726,2]
[329331967,1718251858603,-658.38,0.0001726,2]
[329331969,1718251858613,-4202.03,0.0001726,2]
[329331971,1718251858625,-1377.33,0.0001726,2]
[329331973,1718251858635,-500.0,0.0001726,2]
[329331975,1718251858646,-500.0,0.0001726,2]
[329331977,1718251858673,-500.0,0.0001726,2]
[329331979,1718251858685,-556.71,0.0001726,2]
[329331981,1718251858695,-500.0,0.0001726,2]
[329331983,1718251858705,-1821.69,0.0001726,2]
[329331985,1718251858715,-500.0,0.0001726,2]
[329331986,1718251858726,-500.0,0.0001726,2]
[329331988,1718251858737,-500.0,0.0001726,2]
[329331990,1718251858748,-150.0,0.0001736,2]
[329331992,1718251858760,-5172.48515124,0.00017408,2]
[329331994,1718251858771,-500.0,0.00017533,2]
[329331996,1718251858782,-500.0,0.00017534,2]
[329331998,1718251858793,-500.0,0.00017534,2]
[329332000,1718251858804,-500.0,0.00017534,2]
[329332002,1718251858814,-500.0,0.00017534,2]
[329332004,1718251858825,-500.0,0.00017534,2]
[329332006,1718251858835,-715.77,0.00017534,2]
[329332008,1718251858845,-500.0,0.00017534,2]
[329332010,1718251858855,-500.0,0.00017534,2]
[329332012,1718251858866,-1384.29,0.00017534,2]
[329332014,1718251858876,-192.66589042,0.00017534,2]
[329332016,1718251858887,-1269.24,0.00017534,2]
[329332018,1718251858897,-500.0,0.00017534,2]
[329332020,1718251858913,-500.0,0.00017534,2]
[329332022,1718251858923,-828.76,0.00017534,2]
[329332024,1718251858933,-1150.42,0.00017534,2]
[329332026,1718251858946,-635.48,0.00017534,2]
[329332028,1718251858956,-958.98,0.00017534,2]
[329332030,1718251858968,-2016.89,0.00017534,2]
[329332032,1718251858979,-500.0,0.00017534,2]
[329332034,1718251858990,-4829.98,0.00017534,2]
[329332036,1718251859001,-645.59,0.00017534,2]
[329332038,1718251859012,-3118.56,0.00017534,2]
[329332040,1718251859022,-500.0,0.00017534,2]
[329332042,1718251859033,-659.12,0.00017534,2]
[329332044,1718251859044,-1277.05,0.00017534,2]
[329332046,1718251859054,-500.0,0.00017534,2]
[329332048,1718251859065,-658.38,0.00017534,2]
[329332050,1718251859075,-4202.03,0.00017534,2]
[329332052,1718251859085,-1377.33,0.00017534,2]
[329332054,1718251859097,-500.0,0.00017534,2]
[329332056,1718251859108,-500.0,0.00017534,2]
[329332058,1718251859120,-500.0,0.00017534,2]
[329332060,1718251859130,-556.71,0.00017534,2]
[329332062,1718251859145,-392.36626128,0.00017534,2]
[329332064,1718251859155,-1821.69,0.00017534,2]
[329332066,1718251859166,-500.0,0.00017534,2]
[329332068,1718251859177,-500.0,0.00017534,2]
[329332070,1718251859189,-500.0,0.00017534,2]
[329332072,1718251859218,-153.0,0.00017535,2]
[329332074,1718251859231,-153.0,0.00017535,2]
[329332075,1718251859242,-153.0,0.00017535,2]
[329332077,1718251859254,-153.0,0.00017535,2]
[329332079,1718251859265,-153.0,0.00017535,2]
[329332081,1718251859279,-153.0,0.00017535,2]
[329332083,1718251859291,-242.4,0.00017701,2]
[329332085,1718251859304,-283.15764922,0.00017806,2]
[329332086,1718251859318,-500.0,0.00017807,2]
[329332088,1718251859330,-500.0,0.00017808,2]
[329332091,1718251859350,-500.0,0.00017808,2]
[329332093,1718251859361,-500.0,0.00017808,2]
[329332095,1718251859371,-500.0,0.00017808,2]
[329332097,1718251859388,-500.0,0.00017808,2]
[329332099,1718251859401,-715.77,0.00017808,2]
[329332101,1718251859415,-500.0,0.00017808,2]
[329332103,1718251859427,-500.0,0.00017808,2]
[329332105,1718251859438,-1384.29,0.00017808,2]
[329332107,1718251859448,-1269.24,0.00017808,2]
[329332109,1718251859458,-500.0,0.00017808,2]
[329332111,1718251859471,-500.0,0.00017808,2]
[329332114,1718251859482,-828.76,0.00017808,2]
[329332116,1718251859493,-1150.42,0.00017808,2]
[329332117,1718251859505,-635.48,0.00017808,2]
[329332119,1718251859517,-958.98,0.00017808,2]
[329332121,1718251859536,-2016.89,0.00017808,2]
[329332123,1718251859547,-500.0,0.00017808,2]
[329332125,1718251859558,-4829.98,0.00017808,2]
[329332127,1718251859572,-645.59,0.00017808,2]
[329332129,1718251859582,-3118.56,0.00017808,2]
[329332131,1718251859592,-500.0,0.00017808,2]
[329332132,1718251859602,-659.12,0.00017808,2]
[329332135,1718251859613,-1277.05,0.00017808,2]
[329332136,1718251859624,-342.84377604,0.00017808,2]
[329332138,1718251859634,-658.38,0.00017808,2]
[329332141,1718251859645,-4202.03,0.00017808,2]
[329332143,1718251859656,-1377.33,0.00017808,2]
[329332144,1718251859667,-500.0,0.00017808,2]
[329332146,1718251859677,-500.0,0.00017808,2]
[329332148,1718251859687,-500.0,0.00017808,2]
[329332150,1718251859698,-556.71,0.00017808,2]
[329332152,1718251859710,-151.0,0.00017808,2]
[329332154,1718251859720,-1821.69,0.00017808,2]
[329332157,1718251859737,-500.0,0.00017808,2]
[329332159,1718251859747,-500.0,0.00017808,2]
[329332161,1718251859759,-500.0,0.00017808,2]
[329332163,1718251859772,-822.98968468,0.00017845,2]
[329332165,1718251859782,-88888.0,0.000179,2]
[329332167,1718251859792,-151.0,0.000179,2]
[329332169,1718251859807,-151.0,0.000179,2]
[329332171,1718251859817,-201.009812,0.000179,2]
[329332173,1718251859828,-151.0,0.000179,2]
[329332175,1718251859839,-264.605845,0.000179,2]
[329332177,1718251859851,-210.791872,0.000179,2]
[329332178,1718251859862,-210.791872,0.000179,2]
[329332180,1718251859877,-280.66097,0.000179,2]
[329332182,1718251859887,-280.66097,0.000179,2]
[329332184,1718251859900,-242.4,0.000179,2]
[329332185,1718251859914,-151.0,0.000179,2]
[329332187,1718251859925,-500.0,0.00017999,2]
[329332189,1718251859935,-500.0,0.00017999,2]
[329332191,1718251859945,-500.0,0.00017999,2]
[329332193,1718251859963,-26456.4090235,0.00018,13]
[329332195,1718251859974,-876.95081653,0.00018,2]
[329332196,1718251859987,-60356.55877026,0.00018,2]
[329332203,1718251860108,-5117.33261553,0.00018,2]
[329332205,1718251860124,-359.98,0.00018,2]
[329332252,1718251877327,303.98,0.00010959,2]
[329332253,1718251888047,253.31,0.00010959,2]
[329332254,1718251898798,211.1,0.00010959,2]
[329332255,1718251909577,175.91,0.00010959,2]
[329332256,1718251916253,1500.0,0.00021917,30]
[329332257,1718251916516,1500.0,0.00022739,30]
[329332258,1718251920608,879.59,0.00010959,2]
[329332261,1718251973470,19318.48895312,0.00010959,2]
[329332262,1718251993208,483.63878693,0.00010959,2]
[329332263,1718252004896,154.9690062,9.999e-05,2]
[329332304,1718252526535,1500.0,0.00021917,30]
[329332305,1718252526970,1500.0,0.00022739,30]
[329332545,1718253034549,-337.93781919,0.00014893,2]
[329332706,1718253041064,-1317.87281831,0.00014893,2]
[329332707,1718253041077,-411.76587532,0.00015,2]
[329332708,1718253041095,-2405.960168,0.00015,2]
[329332709,1718253041122,-509.8958065,0.00015006,2]
[329332710,1718253041140,-436.4033406,0.00015006,2]
[329332711,1718253041157,-300.0,0.00015007,2]
[329332712,1718253041176,-244.79159116,0.00015009,2]
[329332719,1718253047457,-1101.24268017,0.00015,2]
[329332721,1718253047470,-8.80872084,0.00015009,2]
[329332723,1718253047481,-9572.18175869,0.00016088,2]
[329332725,1718253047495,-597.50721198,0.00016337,2]
[329332726,1718253047507,-156.8937664,0.00016436,2]
[329332727,1718253047524,-155.2355592,0.00016436,2]